Workbook

Sheet キッチンの改造費
A1: キッチンの改造費ワークシート
A2: 品目 | B2: 数量 | C2: 品目ごとの費用 (\) | E2: 総費用 (\)
C4: 見積もり | D4: 実際の費用 | E4: 見積もり | F4: 実際の費用
A5: キャビネット
A6: 基本キャビネット : モジュール式の標準 (1 メートルあたり) | B6: 25 | C6: 500 | E6: =B6*C6 -> 12,500 | F6: =B6*D6 -> 0
A7: 上級キャビネット : モジュール式の標準 (1 メートルあたり) | B7: 25 | C7: 3,500 | E7: =B7*C7 -> 87,500 | F7: =B7*D7 -> 0
A8: 清掃用の電気機器
A9: 食器洗浄機 : 標準 | B9: 1 | C9: 25,000 | E9: =B9*C9 -> 25,000 | F9: =B9*D9 -> 0
A10: ディスポーザ : 標準 | B10: 1 | C10: 17,500 | E10: =B10*C10 -> 17,500 | F10: =B10*D10 -> 0
A11: 料理用の電気機器
A12: レンジ : スライドイン式の標準 | B12: 1 | C12: 37,500 | E12: =B12*C12 -> 37,500 | F12: =B12*D12 -> 0
A13: 電子レンジ : 標準 | B13: 1 | C13: 30,000 | E13: =B13*C13 -> 30,000 | F13: =B13*D13 -> 0
A14: カウンター
A15: 頑丈な表面 (1 メートルあたり) | B15: 23 | C15: 1,000 | E15: =B15*C15 -> 23,000 | F15: =B15*D15 -> 0
A16: ドア
A17: 内部 : ソリッドコアの化粧張り | B17: 1 | C17: 6,500 | E17: =B17*C17 -> 6,500 | F17: =B17*D17 -> 0
A18: 割増し料金
A19: 割増し料金 : 瞬時の湯沸しの標準 | B19: 1 | C19: 12,000 | E19: =B19*C19 -> 12,000 | F19: =B19*D19 -> 0
A20: 割増し料金 : ソープ ディスペンサ | B20: 1 | C20: 4,000 | E20: =B20*C20 -> 4,000 | F20: =B20*D20 -> 0
A21: 蛇口
A22: 蛇口 : レバー、標準 | B22: 1 | C22: 13,000 | E22: =B22*C22 -> 13,000 | F22: =B22*D22 -> 0
A23: 床材
A24: ラミネート (1 平方メートルあたり) | B24: 165 | C24: 3,500 | E24: =B24*C24 -> 577,500 | F24: =B24*D24 -> 0
A25: 洗濯室の電気機器
A26: 洗濯機 : 標準 | B26: 1 | C26: 50,000 | E26: =B26*C26 -> 50,000 | F26: =B26*D26 -> 0
A27: 乾燥機 : 標準 | B27: 1 | C27: 37,500 | E27: =B27*C27 -> 37,500 | F27: =B27*D27 -> 0
A28: 照明
A29: 照明 : はめ込み式の容器 | B29: 4 | C29: 3,500 | E29: =B29*C29 -> 14,000 | F29: =B29*D29 -> 0
A30: 冷蔵庫
A31: 冷蔵庫 : 独立型、贅沢品 | B31: 1 | C31: 120,000 | E31: =B31*C31 -> 120,000 | F31: =B31*D31 -> 0
A32: シンク
A33: ダブルボウルのステンレス スチールの贅沢品 | B33: 1 | C33: 12,500 | E33: =B33*C33 -> 12,500 | F33: =B33*D33 -> 0
A34: 換気
A35: フード装置 : ダクト式の標準 | B35: 1 | C35: 18,000 | E35: =B35*C35 -> 18,000 | F35: =B35*D35 -> 0
A36: 壁
A37: 人造壁板 (1 平方メートルあたり) | B37: 70 | C37: 200 | E37: =B37*C37 -> 14,000 | F37: =B37*D37 -> 0
A38: 窓
A39: スライド式 | B39: 2 | C39: 12,000 | E39: =B39*C39 -> 24,000 | F39: =B39*D39 -> 0
A40: その他
E41: =B41*C41 -> 0 | F41: =B41*D41 -> 0
A42: 小計 | E42: =SUM(E6:E41) -> 1,136,000 | F42: =SUM(F6:F41) -> 0
A43: 予備費
A44: 加算 30% | E44: =E42*0.3 -> 340,800 | F44: 0
A45: 合計 | E45: =SUM(E42,E44) -> \1,476,800 | F45: =SUM(F42,F44) -> \0
